bitfinex-derivatives/quotes_ETHF0:USTF0_20241230
["timestamp","ask_amount","ask_price","bid_price","bid_amount"]
[1735543970969,2.34125293,3412.9,3412.3,3.6475]
[1735543971272,2.63485293,3412.6,3412.3,3.6475]
[1735543971769,0.29362,3412.4,3412.3,3.2078]
[1735543972359,0.4513,3412.5,3412.3,3.2078]
[1735543972572,2.34125293,3412.6,3412.3,3.2078]
[1735543972870,0.29361,3412.5,3412.3,3.2078]
[1735543973472,2.34125293,3412.6,3412.3,3.2078]
[1735543973671,0.29362,3412.4,3412.3,3.2078]
[1735543974273,0.29365,3412.1,3411.9,3.2078]
[1735543974664,0.4473,3412.0,3411.9,3.2078]
[1735543975475,0.74095,3412.0,3411.9,3.2078]
[1735543976072,0.29366,3411.9,3411.4,0.7099]
[1735543976878,0.4473,3412.0,3411.4,0.7099]
[1735543977175,0.29367,3411.8,3411.4,0.7099]
[1735543977574,0.74095,3412.0,3411.6,3.2078]
[1735543977873,0.4473,3412.0,3411.6,3.2078]
[1735543978078,0.29366,3411.9,3411.6,3.2078]
[1735543978273,0.29367,3411.8,3411.6,3.2078]
[1735543978482,0.29367,3411.8,3411.4,0.4162]
[1735543978977,0.29367,3411.8,3411.4,0.7099]
[1735543979279,0.4473,3412.0,3411.4,0.4162]
[1735543979772,0.29368,3411.7,3411.4,0.4162]
[1735543980475,2.78855293,3412.0,3411.4,0.4162]
[1735543980681,0.4473,3412.0,3411.4,0.4162]
[1735543980873,0.29365,3412.1,3411.6,0.29368]
[1735543981072,0.74414,3412.2,3411.8,0.29367]
[1735543981272,0.74414,3412.2,3411.9,0.4335]
[1735543981775,0.29364,3412.2,3411.9,0.4335]
[1735543982172,0.29364,3412.1,3411.9,0.4335]
[1735543982368,0.29364,3412.2,3411.9,0.4335]
[1735543982579,0.29364,3412.1,3411.9,0.4335]
[1735543982876,0.29364,3412.2,3411.9,0.4335]
[1735543983081,3.2078,3412.8,3411.9,0.4335]
[1735543983272,2.28704725,3412.9,3412.7,3.2078]
[1735543983477,2.28704725,3412.9,3412.7,3.50139]
[1735543983679,2.28704725,3412.9,3412.8,0.4223]
[1735543984576,0.4196,3413.1,3412.8,0.4223]
[1735543984780,0.71316,3413.1,3412.8,0.4223]
[1735543984978,0.4196,3413.1,3412.8,0.4223]
[1735543985487,2.34125293,3413.2,3412.8,0.71587]
[1735543986080,2.34125293,3413.2,3412.8,0.4223]
[1735543986280,0.4161,3413.4,3412.8,0.4223]
[1735543986475,0.70964,3413.4,3412.9,0.29357]
[1735543986679,0.70964,3413.4,3413.0,0.42]
[1735543987176,0.4161,3413.4,3413.0,0.71356]
[1735543987383,0.4161,3413.4,3413.0,0.42]
[1735543987384,0.70963,3413.4,3413.0,0.42]
[1735543987986,2.63478293,3413.5,3413.0,0.71356]
[1735543988281,2.34125293,3413.2,3413.0,0.42]
[1735543988579,2.34125293,3413.2,3412.7,3.2078]
[1735543988580,0.29358,3412.8,3412.7,3.2078]
[1735543988979,2.34125293,3413.2,3412.7,3.2078]
[1735543989180,2.63480293,3413.2,3412.7,3.50139]
[1735543989478,2.75325293,3413.5,3412.7,3.2078]
[1735543989685,2.28704725,3413.5,3413.4,0.29353]
[1735543990081,2.28704725,3413.5,3413.4,1.57863]
[1735543990686,0.95754875,3413.8,3413.4,6.2851]
[1735543990882,5.7230465,3414.0,3413.9,0.29349]
[1735543991285,2.28619226,3414.3,3413.7,3.2078]
[1735543991485,2.28619226,3414.3,3414.2,3.2078]
[1735543991888,2.28619226,3414.3,3414.2,3.6583]
[1735543992480,2.28619226,3414.3,3414.2,3.95176]
[1735543992680,0.29343,3414.6,3414.2,3.95176]
[1735543992880,0.29343,3414.6,3414.2,3.6583]
[1735543993081,2.34125293,3414.7,3414.2,3.6583]
[1735543993482,0.29343,3414.6,3414.2,3.6583]
[1735543994188,2.34125293,3414.7,3414.2,3.6583]
[1735543994377,2.34125293,3414.7,3414.2,3.95176]
[1735543994582,2.63467293,3414.7,3414.2,3.6583]
[1735543994978,2.34125293,3414.7,3414.2,3.6583]
[1735543995177,5.54905293,3415.0,3414.4,0.29344]
[1735543995783,2.79462739,3415.3,3414.4,0.29344]
[1735543995983,5.7230465,3415.4,3415.1,0.29338]
[1735543996186,5.7230465,3415.4,3415.2,0.29337]
[1735543996585,5.7230465,3415.4,3415.1,3.50118]
[1735543996791,5.7230465,3415.4,3415.1,3.2078]
[1735543996990,2.34125293,3415.6,3415.1,3.2078]
[1735543997394,0.29337,3415.3,3415.1,3.2078]
[1735543997594,0.29337,3415.2,3415.1,3.2078]
[1735544000190,0.29341,3414.8,3414.7,3.2078]
[1735544000395,2.63466293,3414.8,3414.7,3.2078]
[1735544002790,2.63466293,3414.8,3413.7,1.1619]
[1735544002791,0.29347,3414.1,3413.7,0.4543]
[1735544002993,2.34125293,3414.3,3413.7,0.4543]
[1735544003189,0.74006,3414.2,3413.7,0.4543]
[1735544003391,0.4466,3414.2,3413.7,0.7478]
[1735544003696,3.2078,3414.4,3413.7,0.4543]
[1735544003896,3.2078,3414.4,3413.9,0.29348]
[1735544004098,0.29346,3414.3,3414.0,0.4164]
[1735544006399,3.2078,3414.4,3414.0,0.4164]
[1735544006691,0.4357,3414.5,3414.0,3.6242]
[1735544006898,0.29343,3414.6,3414.0,3.6242]
[1735544006899,6.28906293,3414.9,3414.3,0.29345]
[1735544007297,0.29341,3414.8,3414.4,0.4161]
[1735544007890,3.6544,3414.9,3414.4,0.4161]
[1735544008200,3.2078,3415.4,3414.6,3.2078]
[1735544008395,0.29337,3415.3,3414.8,0.2934]
[1735544008592,3.2078,3415.4,3414.7,0.4537]
[1735544008792,3.2078,3415.4,3415.1,0.29338]
[1735544009296,3.50116,3415.4,3414.9,0.2934]
[1735544009495,3.2078,3415.4,3414.9,0.2934]
[1735544009792,3.2078,3415.4,3415.0,0.4161]
[1735544010498,3.50116,3415.4,3415.0,0.4161]
[1735544011190,0.29337,3415.3,3415.0,0.4161]
[1735544011389,0.2934,3415.0,3414.7,0.4537]
[1735544011597,2.34125293,3415.2,3414.6,3.2078]
[1735544011796,3.2078,3415.4,3414.6,3.2078]
[1735544011999,3.2078,3415.4,3415.0,0.29339]
[1735544012297,2.34125293,3415.1,3414.3,0.8614]
[1735544012605,0.29344,3414.5,3414.2,3.2078]
[1735544012801,2.34125293,3414.7,3413.8,3.64]
[1735544012993,0.4439,3414.6,3413.9,0.29348]
[1735544013190,0.29345,3414.3,3413.8,3.93349]
[1735544013395,0.29345,3414.3,3413.8,0.72569]
[1735544013693,0.29345,3414.3,3413.9,3.50128]
[1735544013694,0.74866,3414.3,3413.9,3.50128]
[1735544013897,0.29348,3414.0,3413.9,3.2078]
[1735544014092,0.29351,3413.6,3413.5,3.2078]
[1735544014995,0.4552,3413.7,3413.5,3.2078]
[1735544015202,0.29351,3413.6,3413.5,3.2078]
[1735544015402,0.4552,3413.7,3413.5,3.2078]
[1735544015403,0.74871,3413.7,3413.5,3.2078]
[1735544015700,0.4552,3413.7,3413.1,0.4448]
[1735544015892,0.29355,3413.2,3412.6,1.193]
[1735544016291,0.29353,3413.4,3412.7,0.29359]
[1735544016798,5.54905293,3413.5,3413.0,0.29356]
[1735544017103,2.34125293,3413.5,3412.9,0.29357]
[1735544017302,0.70902,3413.6,3413.0,0.29356]
[1735544017799,0.4155,3413.6,3413.1,3.2078]
[1735544018000,0.70902,3413.6,3413.1,3.6473]
[1735544018503,0.29353,3413.4,3413.1,0.4395]
[1735544018700,2.34125293,3413.5,3413.1,0.4395]
[1735544018898,0.70902,3413.6,3413.1,0.4395]
[1735544019198,0.4155,3413.6,3413.1,0.4395]
[1735544019398,0.29352,3413.5,3413.1,0.4395]
[1735544020097,0.4155,3413.6,3413.1,0.4395]
[1735544020301,0.4552,3413.7,3413.3,0.29353]
[1735544020696,0.4552,3413.7,3413.2,0.70684]
[1735544020902,0.4552,3413.7,3413.2,0.4133]
[1735544021308,0.74871,3413.7,3413.2,0.4133]
[1735544021607,0.4552,3413.7,3413.2,0.4133]
[1735544021807,0.4552,3413.7,3413.2,0.70684]
[1735544022405,0.4552,3413.7,3413.2,0.4133]
[1735544022601,0.7487,3413.7,3413.2,0.4133]
[1735544023106,0.4552,3413.7,3413.2,0.4133]
[1735544023407,0.4552,3413.7,3413.3,0.29354]
[1735544023801,3.2078,3413.9,3413.2,0.4133]
[1735544024000,2.34125293,3414.1,3413.2,0.4133]
[1735544024001,0.45342071,3414.5,3413.5,3.2078]
[1735544024305,0.4114,3414.7,3414.4,3.2078]
[1735544024608,4.98359326,3414.9,3414.5,0.70993]
[1735544024808,4.98359326,3414.9,3414.5,0.4165]
[1735544025006,4.55469326,3414.9,3414.6,0.29343]
[1735544025307,4.55469326,3414.9,3414.6,0.73183]
[1735544025510,4.55469326,3414.9,3414.7,0.29342]
[1735544025803,0.2934,3414.9,3414.6,0.4384]
[1735544026606,2.34125293,3415.1,3414.5,0.4165]
[1735544027011,2.63464293,3415.1,3414.6,0.29342]
[1735544027221,0.2934,3415.0,3414.5,3.91773]
[1735544028516,0.2934,3415.0,3414.5,3.6243]
[1735544028709,0.2934,3415.0,3414.6,0.29343]
[1735544029118,0.2934,3415.0,3414.5,3.6243]
[1735544029321,3.2078,3415.2,3414.5,3.6243]
[1735544029519,2.34125293,3415.1,3414.5,3.6243]
[1735544030320,0.29341,3414.8,3414.5,3.6243]
[1735544030520,0.29342,3414.7,3414.5,3.6243]
[1735544030721,2.34125293,3415.1,3414.5,3.6243]
[1735544030919,3.2078,3415.2,3414.5,3.6243]
[1735544031119,3.2078,3415.2,3414.9,0.2934]
[1735544031319,3.50118,3415.2,3414.8,0.29341]
[1735544031515,3.2078,3415.2,3414.5,3.6243]
[1735544031716,2.34125293,3415.1,3414.5,3.6243]
[1735544031917,0.29343,3414.6,3414.5,3.2078]
[1735544032120,2.34125293,3415.1,3414.5,3.2078]
[1735544032525,0.29341,3414.8,3414.5,3.2078]
[1735544032724,0.29339,3415.0,3414.5,3.50123]
[1735544033224,2.34125293,3415.1,3414.5,3.2078]
[1735544033822,3.50118,3415.2,3414.8,0.2934]
[1735544034214,3.2078,3415.2,3414.7,0.29341]
[1735544034413,3.2078,3415.2,3414.6,0.4171]
[1735544034619,0.2934,3415.0,3414.6,0.4171]
[1735544035126,0.2934,3415.0,3414.6,0.71052]
[1735544036327,3.2078,3415.2,3414.6,0.4171]
[1735544036627,2.34125293,3415.1,3414.6,0.4171]
[1735544036924,0.29339,3415.0,3414.6,0.4171]
[1735544037320,0.29339,3415.0,3414.5,3.50123]
[1735544037321,0.74221,3414.9,3414.5,3.2078]
[1735544037925,0.29342,3414.7,3414.5,3.2078]
[1735544038516,0.29343,3414.6,3414.5,3.2078]
[1735544038916,0.29348,3414.0,3413.9,4.61084611]
[1735544040320,0.29349,3413.9,3413.4,0.29353]
[1735544040527,0.29349,3413.9,3413.3,0.8321]
[1735544040726,0.29349,3413.9,3413.4,0.29353]
[1735544041430,0.4488,3414.1,3413.6,3.2078]
[1735544041729,3.2078,3414.2,3413.7,0.2935]
[1735544041920,7.32514619,3414.6,3413.6,3.2078]
[1735544042231,0.29347,3414.2,3413.7,0.2935]
[1735544042730,2.77045293,3414.6,3413.6,3.2078]
[1735544042934,3.2078,3414.2,3413.6,3.2078]
[1735544043231,3.2078,3414.2,3413.3,5.44294611]
[1735544043732,0.29344,3414.5,3414.1,3.50127]
[1735544043932,0.4292,3414.6,3414.2,0.29346]
[1735544043933,0.72263,3414.6,3414.2,0.29346]
[1735544044128,0.72263,3414.6,3414.2,0.72536]
[1735544044435,0.4292,3414.6,3414.3,0.29345]
[1735544044634,0.72263,3414.6,3414.2,0.72536]
[1735544045031,0.4292,3414.6,3414.2,0.4319]
[1735544045332,0.4292,3414.6,3414.2,1.14245]
[1735544045533,0.72263,3414.6,3414.2,1.14245]
[1735544046037,0.29345,3414.4,3414.1,3.2078]
[1735544046237,0.29346,3414.3,3414.1,3.2078]
[1735544046528,2.34125293,3414.5,3414.1,3.2078]
[1735544046734,0.29346,3414.3,3414.1,3.2078]
[1735544046937,0.29345,3414.4,3414.1,3.2078]
[1735544047339,0.29346,3414.2,3414.1,3.2078]
[1735544047534,0.29349,3413.9,3413.6,3.2078]
[1735544047736,0.4126,3413.8,3413.6,3.2078]
[1735544048331,0.4126,3413.8,3413.2,3.6302]
[1735544048737,0.4126,3413.8,3413.4,0.29352]
[1735544049335,0.29351,3413.6,3413.2,3.92374]
[1735544049536,2.34125293,3414.2,3413.2,3.6302]
[1735544049742,0.29348,3414.1,3413.7,0.2935]
[1735544050041,0.29349,3413.9,3413.6,3.2078]
[1735544050236,2.34125293,3413.9,3413.3,0.29354]
[1735544050433,3.2078,3414.0,3413.2,3.6302]
[1735544050638,3.2078,3414.0,3413.7,0.2935]
[1735544050839,3.2078,3414.0,3413.8,0.4161]
[1735544052241,0.4295,3414.3,3413.9,0.29348]
[1735544053144,3.2078,3414.4,3414.1,0.29347]
[1735544053345,0.29343,3414.6,3414.2,3.2078]
[1735544053547,4.30110251,3414.7,3414.2,3.2078]
[1735544053845,4.59452251,3414.7,3414.2,3.50126]
[1735544054041,0.8731,3414.7,3414.2,3.2078]
[1735544054242,0.4349,3414.7,3414.4,0.29344]
[1735544056045,0.29338,3415.1,3414.7,0.29342]
[1735544056250,0.29339,3415.0,3414.7,0.29342]
[1735544056438,0.4208,3415.1,3414.6,3.2078]
[1735544056644,0.29341,3414.8,3414.6,3.2078]
[1735544056844,0.29341,3414.8,3414.5,0.73033]
[1735544057051,0.2934,3414.9,3414.5,0.73033]
[1735544057744,0.2934,3414.9,3414.6,0.29343]
[1735544057949,0.29341,3414.8,3414.5,0.73033]
[1735544058838,0.4208,3415.1,3414.5,0.4369]
[1735544059041,0.2934,3415.0,3414.7,0.29342]
[1735544059241,0.4208,3415.1,3414.5,0.4369]
[1735544059443,0.2934,3414.9,3414.6,0.29342]
[1735544059954,0.4208,3415.1,3414.5,0.4369]
[1735544060253,0.4208,3415.1,3414.9,0.2934]
[1735544060746,0.71419,3415.1,3414.6,0.4403]
[1735544061050,0.2934,3415.0,3414.7,0.29342]
[1735544061252,0.4208,3415.1,3414.7,0.29342]
[1735544061550,0.71419,3415.1,3414.7,0.29342]
[1735544061750,0.71419,3415.1,3414.8,0.29341]
[1735544061952,0.4208,3415.1,3414.9,0.2934]
[1735544062345,0.4208,3415.1,3414.6,0.4403]
[1735544062651,0.71419,3415.1,3414.7,0.29341]
[1735544062949,0.71419,3415.1,3414.6,0.4403]
[1735544062950,0.4208,3415.1,3414.8,0.2934]
[1735544063751,0.4208,3415.1,3414.6,0.4403]
[1735544063947,0.71419,3415.1,3414.7,0.29341]
[1735544064152,0.2934,3415.0,3414.6,0.73372]
[1735544064453,0.2934,3414.9,3414.6,0.73373]
[1735544064648,0.2934,3414.9,3414.6,0.4403]
[1735544064846,0.2934,3414.9,3414.6,0.73373]
[1735544065249,0.29341,3414.8,3414.6,0.4403]
[1735544065546,0.4208,3415.1,3414.6,0.4403]
[1735544065750,0.4208,3415.1,3414.5,0.4369]
[1735544065751,0.29342,3414.7,3414.5,0.4369]
[1735544066647,0.8388,3415.1,3414.5,0.4369]
[1735544066648,0.29341,3414.8,3414.6,0.29343]
[1735544067247,0.29342,3414.7,3414.5,0.73033]
[1735544067453,0.29343,3414.6,3414.5,0.4369]
[1735544067654,0.29342,3414.7,3414.5,0.4369]
[1735544067855,0.29343,3414.6,3414.5,0.4369]
[1735544068357,0.8388,3415.1,3414.5,0.4369]
[1735544068556,0.29342,3414.8,3414.5,0.73033]
[1735544068758,0.29342,3414.7,3414.5,0.73033]
[1735544069462,0.29343,3414.6,3414.5,0.4369]
[1735544069756,0.29344,3414.5,3414.3,0.29345]
[1735544070050,0.4268,3414.5,3414.3,0.29345]
[1735544070957,0.72024,3414.5,3414.3,0.29345]
[1735544071158,0.29345,3414.4,3414.2,3.92796]
[1735544071452,0.29344,3414.4,3414.2,0.72016]
[1735544071656,0.4268,3414.5,3414.0,5.05254611]
[1735544071959,0.72024,3414.5,3414.3,0.29345]
[1735544072250,0.4268,3414.5,3414.2,3.2078]
[1735544072453,0.29344,3414.4,3414.2,3.50126]
[1735544072756,0.29347,3414.2,3414.0,5.05254611]
[1735544072956,0.29347,3414.1,3414.0,5.05254611]
[1735544074058,0.29347,3414.1,3414.0,4.61084611]
[1735544074461,0.29347,3414.1,3413.8,3.50129]
[1735544075856,3.6304,3414.3,3413.6,4.61084611]
[1735544075857,0.2935,3413.7,3413.6,4.61084611]
[1735544076056,0.2935,3413.8,3413.6,4.61084611]
[1735544076262,0.2935,3413.7,3413.6,4.61084611]
[1735544077064,0.29352,3413.6,3413.2,8.11218611]
[1735544077259,0.74472,3413.6,3413.2,8.11218611]
[1735544077656,0.29353,3413.4,3413.2,7.81864611]
[1735544078063,0.4512,3413.6,3413.2,7.81864611]
[1735544078262,0.29354,3413.3,3413.2,3.2078]
[1735544078762,0.29354,3413.4,3413.1,0.4224]
[1735544078963,0.29354,3413.3,3413.1,0.4224]
[1735544079167,0.4512,3413.6,3413.0,4.61084611]
[1735544079357,0.29356,3413.1,3413.0,4.61084611]
[1735544079663,0.72985,3413.2,3413.0,4.61084611]
[1735544080664,0.4363,3413.2,3413.0,4.90440611]
[1735544080863,0.72985,3413.2,3413.0,4.61084611]
[1735544081163,0.72985,3413.2,3412.9,0.29357]
[1735544081555,0.29356,3413.1,3412.8,3.50138]
[1735544081759,0.29356,3413.1,3412.8,3.2078]
[1735544082163,0.29357,3413.0,3412.8,3.2078]
[1735544082364,0.29357,3412.9,3412.8,3.2078]
[1735544082663,0.71447,3412.9,3412.8,3.2078]
[1735544085565,0.4209,3412.9,3412.4,3.2078]
[1735544085762,0.71448,3412.9,3412.4,3.50141]
[1735544086164,0.29359,3412.8,3412.4,3.50141]
[1735544086469,2.34125293,3412.8,3412.5,0.29361]
[1735544086668,2.63483293,3412.8,3412.4,3.50141]
[1735544086970,2.34125293,3412.8,3412.4,3.2078]
[1735544087167,2.34125293,3412.8,3412.5,0.2936]
[1735544088867,2.34125293,3412.8,3411.9,0.4353]
[1735544088868,2.34125293,3412.8,3412.1,3.2078]
[1735544089167,2.34125293,3412.8,3412.3,0.29362]
[1735544089368,0.2936,3412.6,3412.0,0.74655]
[1735544089575,0.29362,3412.4,3412.0,0.4529]
[1735544089772,3.07276293,3412.5,3412.0,0.4529]
[1735544089964,2.77915293,3412.5,3412.0,0.4529]
[1735544090169,3.07276293,3412.5,3412.0,0.4529]
[1735544090362,2.77915293,3412.5,3412.0,0.4529]
[1735544090563,2.77915293,3412.5,3411.7,3.6326]
[1735544090564,0.29364,3412.1,3411.7,3.2078]
[1735544090764,2.34125293,3412.2,3411.7,3.2078]
[1735544090973,0.4388,3412.1,3411.7,3.50147]
[1735544091367,0.73245,3412.1,3411.7,3.2078]
[1735544092268,0.73245,3412.1,3411.7,3.50147]
[1735544092269,0.4388,3412.1,3411.7,3.50147]
[1735544093175,0.73245,3412.1,3411.7,3.2078]
[1735544093970,0.4388,3412.1,3411.7,3.50148]
[1735544094472,0.73245,3412.1,3411.7,3.2078]
[1735544094669,0.4388,3412.1,3411.7,3.50147]
[1735544094869,0.4388,3412.1,3411.7,3.2078]
[1735544095266,0.4388,3412.1,3411.7,3.50148]
[1735544098375,2.34125293,3411.9,3411.7,3.2078]
[1735544098878,0.73244,3412.1,3411.7,3.2078]
[1735544099466,0.4388,3412.1,3411.7,3.2078]
[1735544099674,0.29365,3412.0,3411.7,3.2078]
[1735544099868,2.34125293,3411.9,3411.7,3.2078]
[1735544100070,2.76265293,3411.9,3411.7,3.2078]
[1735544100472,0.29367,3411.8,3411.7,3.2078]
[1735544102276,2.76265293,3411.9,3411.3,0.4514]
[1735544102480,0.2937,3411.5,3411.3,0.4514]
[1735544102675,2.34125293,3411.6,3411.0,3.50153]
[1735544102676,0.4408,3411.4,3411.0,3.2078]
[1735544102879,0.29377,3410.6,3410.5,0.4318]
[1735544103180,0.29377,3410.6,3410.1,0.4284]
[1735544103382,3.2078,3410.6,3410.3,0.4318]
[1735544103782,3.50158,3410.6,3410.3,0.4318]
[1735544104484,3.2078,3410.6,3410.3,0.4318]
[1735544104681,0.29378,3410.5,3410.3,0.4318]
[1735544105985,2.34125293,3410.8,3410.3,0.4318]
[1735544106289,3.2078,3411.0,3410.9,0.29374]
[1735544106594,3.2078,3411.4,3411.1,0.29373]
[1735544106791,3.2078,3411.4,3411.2,0.8404]
[1735544107191,5.54905293,3411.4,3411.2,0.4254]
[1735544107585,5.84275293,3411.4,3411.2,0.4254]
[1735544107887,5.54905293,3411.4,3411.2,0.4254]
[1735544108795,5.54905293,3411.4,3410.7,3.2078]
[1735544108985,0.29374,3411.0,3410.8,0.43]
[1735544109483,2.34125293,3411.1,3410.8,0.43]
[1735544109891,0.71044,3411.0,3410.8,0.43]
[1735544110090,0.29375,3410.8,3410.7,3.2078]
[1735544110282,2.34125293,3410.8,3410.7,3.2078]
[1735544110487,2.63500293,3410.8,3410.7,3.2078]
[1735544110797,0.4394,3410.9,3410.7,3.2078]
[1735544111691,0.4167,3411.0,3410.7,3.2078]
[1735544111890,2.34125293,3411.1,3410.8,0.29375]
[1735544112193,0.73311,3411.3,3410.7,3.50155]
[1735544112590,0.29372,3411.2,3410.7,3.50155]
[1735544113192,0.4394,3411.3,3410.9,0.29374]
[1735544113399,0.4394,3411.3,3410.7,3.2078]
[1735544113605,0.4394,3411.3,3410.4,0.4147]
[1735544113606,0.29369,3411.6,3411.1,3.50152]
[1735544113790,3.05163293,3411.7,3411.2,1.18442]
[1735544113991,3.05163293,3411.7,3411.2,0.8907]
[1735544114497,0.29369,3411.6,3411.2,0.8907]
[1735544114699,3.05163293,3411.7,3411.2,1.18442]
[1735544114902,3.05163293,3411.7,3411.2,0.8907]
[1735544115096,0.29368,3411.6,3411.2,0.8907]
[1735544116000,2.34125293,3411.4,3411.2,0.8907]
[1735544116303,2.63495293,3411.4,3411.2,0.4438]
[1735544116596,0.29371,3411.3,3411.2,0.4438]
[1735544116800,2.63495293,3411.4,3411.2,0.4438]
[1735544117297,0.29372,3411.3,3411.1,3.2078]
[1735544117496,2.63495293,3411.4,3411.1,3.6542]
[1735544117689,2.34125293,3411.4,3411.1,3.6542]
[1735544120995,2.34125293,3411.7,3411.1,3.6542]
[1735544121297,0.29369,3411.6,3411.2,0.4294]
[1735544122199,0.29368,3411.6,3411.2,0.4294]
[1735544122597,0.29369,3411.5,3411.2,0.4294]
[1735544122895,2.63493293,3411.7,3411.2,0.72312]
[1735544123092,2.34125293,3411.7,3411.2,0.4294]
[1735544123292,2.63493293,3411.7,3411.2,0.72311]
[1735544123497,2.34125293,3411.7,3411.2,0.4294]
[1735544123699,0.29369,3411.6,3411.2,0.4294]
[1735544124903,0.426,3411.9,3411.7,0.29367]
[1735544125100,3.6506,3412.2,3411.8,0.4293]
[1735544125408,3.6506,3412.2,3411.9,0.4224]
[1735544125700,0.29365,3412.1,3411.9,0.4224]
[1735544125897,3.6506,3412.2,3411.9,0.4224]
[1735544126099,0.4428,3412.2,3411.9,3.6302]
[1735544126302,2.71496657,3412.3,3412.0,0.29365]
[1735544126505,2.71496657,3412.3,3411.9,3.92385]
[1735544126693,3.00859657,3412.3,3411.9,3.6302]
[1735544126899,0.4471,3412.3,3411.9,3.6302]
[1735544127099,0.29363,3412.2,3411.9,3.6302]
[1735544127405,0.74073,3412.3,3411.9,3.6302]
[1735544128205,0.29363,3412.2,3411.9,3.6302]
[1735544129008,0.29363,3412.2,3411.9,0.4224]
[1735544129304,2.34125293,3412.5,3411.9,0.4224]
[1735544129305,0.4335,3412.6,3411.9,3.6302]
[1735544129507,5.47566657,3412.7,3412.5,0.29361]
[1735544129709,5.47566657,3412.7,3412.6,0.8923]
[1735544129710,6.63580251,3412.7,3412.6,0.8923]
[1735544129908,6.92939251,3412.7,3412.6,0.4409]
[1735544130209,6.63580251,3412.7,3412.6,0.4409]
[1735544131103,2.2815641,3413.0,3412.7,0.29359]
[1735544131308,2.2815641,3413.0,3412.8,0.4259]
[1735544131813,2.2815641,3413.0,3412.8,0.71947]
[1735544132015,2.2815641,3413.0,3412.9,0.29357]
[1735544132906,3.2078,3413.2,3413.0,0.29356]
[1735544133103,3.2078,3413.2,3413.1,0.29356]
[1735544133317,2.2815641,3413.5,3413.4,0.29353]
[1735544133906,2.2815641,3413.5,3413.4,1.12553]
[1735544134507,2.2815641,3413.5,3413.4,0.4181]
[1735544134709,2.7219641,3413.5,3413.3,3.2078]
[1735544134916,0.29353,3413.4,3413.3,3.2078]
[1735544135714,0.8683,3413.5,3413.3,3.2078]
[1735544136013,0.29353,3413.4,3413.3,3.2078]
[1735544136208,0.72143,3413.4,3413.3,3.2078]
[1735544136812,0.4279,3413.4,3413.3,3.2078]
[1735544137512,0.72143,3413.4,3413.3,3.2078]
[1735544138013,0.4279,3413.4,3413.3,3.2078]
[1735544141215,0.29356,3413.1,3412.3,3.2078]
[1735544141411,2.63480293,3413.2,3412.6,0.29359]
[1735544141715,0.29356,3413.1,3412.6,0.29359]
[1735544141917,0.29356,3413.1,3412.5,0.728]
[1735544142113,0.73716,3413.1,3412.5,0.728]
[1735544142515,0.29357,3413.0,3412.5,0.4344]
[1735544142720,0.4436,3413.1,3412.5,0.4344]
[1735544143021,0.29358,3412.8,3412.5,0.4344]
[1735544143218,0.426,3412.7,3412.5,0.4344]
[1735544143718,0.426,3412.7,3412.5,0.72801]
[1735544144019,0.4535,3412.9,3412.6,0.2936]
[1735544144213,0.4535,3412.9,3412.7,0.29359]
[1735544144413,0.4535,3412.9,3412.5,0.4344]
[1735544144616,0.4535,3412.9,3412.6,0.29359]
[1735544146213,0.4535,3412.9,3412.5,0.4344]
[1735544146412,0.4535,3412.9,3412.5,0.728]
[1735544146619,0.4535,3412.9,3412.5,0.4344]
[1735544146916,0.29359,3412.7,3412.5,0.4344]
[1735544147120,0.4449,3412.6,3412.3,3.50142]
[1735544147306,0.4449,3412.6,3412.4,0.29361]
[1735544147513,0.4449,3412.6,3412.3,3.50142]
[1735544148108,0.4449,3412.6,3412.4,0.29361]
[1735544148322,0.4535,3412.9,3412.4,0.29361]
[1735544148515,0.29358,3412.8,3412.4,0.29361]
[1735544149019,0.29358,3412.8,3412.3,3.2078]
[1735544149218,0.74707,3412.9,3412.6,0.2936]
[1735544149419,0.74707,3412.9,3412.3,3.2078]
[1735544149622,0.29358,3412.8,3412.5,0.2936]
[1735544150119,0.4535,3412.9,3412.5,0.2936]
[1735544150319,0.74708,3412.9,3412.6,0.4179]
[1735544150722,2.79475293,3412.9,3412.3,3.2078]
[1735544150911,0.29362,3412.4,3412.3,3.2078]
[1735544151113,3.2078,3412.5,3411.8,3.2078]
[1735544151313,0.29368,3411.7,3411.6,4.61084611]
[1735544152018,0.71138,3411.7,3411.6,4.61084611]
[1735544153323,0.2937,3411.5,3411.1,3.2078]
[1735544153522,0.4205,3411.4,3411.1,3.2078]
[1735544153717,0.4205,3411.4,3411.2,0.29371]
[1735544154019,0.4205,3411.4,3411.2,0.29372]
[1735544154323,0.4205,3411.4,3411.2,0.29371]
[1735544154528,0.29369,3411.6,3411.2,0.29371]
[1735544154921,3.2078,3412.1,3411.1,3.2078]
[1735544154922,5.54905293,3412.1,3411.1,3.2078]
[1735544155223,0.29371,3411.3,3411.1,3.2078]
[1735544155523,2.34125293,3411.8,3411.1,3.2078]
[1735544155727,2.34125293,3411.5,3411.1,3.2078]
[1735544156020,0.2937,3411.4,3411.1,3.2078]
[1735544156321,0.4294,3411.4,3411.2,0.29372]
[1735544156524,0.72311,3411.4,3411.1,3.50152]
[1735544158215,0.4294,3411.4,3411.1,3.2078]
[1735544158416,0.4294,3411.4,3411.2,0.29371]
[1735544159825,0.72311,3411.4,3411.1,3.2078]
[1735544160026,0.4294,3411.4,3411.1,3.2078]
[1735544160227,0.4294,3411.4,3411.2,0.29371]
[1735544160423,0.4294,3411.4,3411.3,0.29371]
[1735544160618,0.4294,3411.4,3411.1,3.2078]
[1735544160823,0.4294,3411.4,3411.3,0.29371]
[1735544161024,0.29368,3411.7,3411.4,0.2937]